[Event "Nakhchivan Open 2022"]
[Site "Nakhchivan"]
[Date "2022.05.08"]
[Round "1.1"]
[White "Lorparizangeneh, Shahin"]
[Black "Mirzayev, Ughur"]
[Result "1-0"]
[ECO "C02"]
[WhiteElo "2502"]
[BlackElo "1309"]
[Annotator "TA"]
[PlyCount "41"]
[EventDate "2022.05.08"]
[EventType "swiss"]
[EventCountry "AZE"]
[SourceTitle "playchess.com"]
[Source "ChessBase"]
[SourceQuality "1"]
[TimeControl "5400+30"]

{[%evp 12,41,21,-22,-16,-27,11,0,16,17,42,0,-12,-18,15,0,21,19,45,40,77,0,231,129,209,191,701,697,1326,1358,2109,1922]} 1. e4 {[%emt 0:00:15]} e6 {[%emt 0:00:19]} 2. d4 {[%emt 0:00:38]} d5 {[%emt 0:00:42]} 3. e5 {[%emt 0:00:06]} c5 {[%emt 0:01:21][%cal Bc7c5,Bc5d4][%mdl 32]} 4. c3 {[%emt 0:00:07]} Nc6 {[%emt 0:00:58]} 5. Nf3 {[%emt 0:00:05]} Bd7 {[%emt 0:02:20]} 6. Bd3 {[%emt 0:00:30]} Qb6 {[%emt 0:02:16]} 7. O-O {[%emt 0:01:17]} cxd4 {[%emt 0:10:18] C02: French: Advance Variation.} 8. a3 {[%emt 0:00:17]} Nh6 {[%emt 0:03:54]} 9. b4 {[%emt 0:00:57] 9.h3 is a critical line.} a6 {[%emt 0:04:03] The position is equal.} 10. Re1 {[%emt 0:01:01]} Rc8 {[%emt 0:04:41] [#]} (10... g6 {keeps more tension.} 11. Nxd4 Nxd4 12. Be3 Nhf5) 11. Bb2 $146 {[%emt 0:00:41]} (11. Nxd4 $14 Qc7 12. Bf4) ({Predecessor:} 11. Bd2 Be7 12. Ra2 O-O 13. cxd4 Nf5 14. Bc3 Na7 15. a4 Rxc3 16. Nxc3 Bxb4 17. Bxf5 Bxc3 18. Bxh7+ Kxh7 {1-0 (30) Hector,J (2539)-Ask,J (2159) Malmo 2012}) 11... dxc3 $11 {[%emt 0:03:08]} 12. Nxc3 {[%emt 0:02:56]} Be7 {[%emt 0:02:22]} 13. Rc1 {[%emt 0:00:12]} O-O {[%emt 0:03:29]} 14. Na4 {[%emt 0:00:33]} Qa7 {[%emt 0:01:39]} 15. Nc5 {[%emt 0:01:34]} Bxc5 {[%emt 0:02:10]} 16. Rxc5 {[%emt 0:00:07]} (16. bxc5 $16 {Strongly threatening Ng5.} Ne7 17. Ng5) 16... b5 $2 {[%emt 0:03:33] [#]} (16... Ne7 $11) 17. Qc2 {[%emt 0:01:24]} (17. Ng5 $1 $18 {[%cal Rg5h7]}) 17... g6 {[%emt 0:03:30]} (17... a5 $16 {was necessary.}) 18. Qd2 $18 {[%emt 0:02:27]} Nf5 {[%emt 0:03:01]} (18... Kg7 19. Bc1 Ng8) 19. Bxf5 {[%emt 0:00:30][%cal Od2h6] White threatens Qh6! and mate. White is clearly winning.} exf5 {[%emt 0:00:54]} 20. Qh6 {[%emt 0:00:23] White wants to mate with Ng5.} Be6 {[%emt 0:03:36]} 21. Ng5 {[%emt 0:00:07] Weighted Error Value: White=0.24 (precise) /Black=0.72} 1-0

[Event "Nakhchivan Open 2022"]
[Site "Nakhchivan"]
[Date "2022.05.08"]
[Round "1.2"]
[White "Gasimov, Said"]
[Black "Rasulov, Vugar"]
[Result "0-1"]
[ECO "C02"]
[WhiteElo "1281"]
[BlackElo "2445"]
[Annotator "TA"]
[PlyCount "40"]
[EventDate "2022.05.08"]
[EventType "swiss"]
[EventCountry "AZE"]
[SourceTitle "playchess.com"]
[Source "ChessBase"]
[SourceQuality "1"]
[TimeControl "5400+30"]

{[%evp 18,39,-27,-36,-31,-77,-27,-70,-70,-70,-69,-76,-71,-187,-207,-308,-254,-521,-502,-555,-555,-29997,-29998,-29999]} 1. e4 {[%emt 0:00:03]} e6 {[%emt 0:00:20]} 2. d4 {[%emt 0:00:21]} d5 {[%emt 0:00:06]} 3. e5 c5 4. c3 {[%emt 0:00:57]} Nc6 {[%emt 0:00:41]} 5. Nf3 {[%emt 0:00:09]} Qb6 {[%emt 0:00:06]} 6. Bd3 {[%emt 0:00:15]} Bd7 {[%emt 0:00:08]} 7. Bc2 {[%emt 0:00:06]} cxd4 {[%emt 0:00:05]} 8. cxd4 {[%emt 0:00:09]} Nb4 {[%emt 0:00:06]} 9. Nc3 {[%emt 0:00:05]} Nxc2+ {[%emt 0:00:15]} 10. Qxc2 {[%emt 0:00:03]} Qa6 {[%emt 0:01:01] [#] C02: French: Advance Variation.} 11. Bf4 $146 {[%emt 0:00:16]} (11. Qe2 $15 {might be stronger.}) ({Predecessor:} 11. Qe2 Qxe2+ 12. Kxe2 Bb4 13. Bd2 Rc8 14. Rhc1 {½-½ (14) Soos,A (2381)-Csizmadia,L (2334) Hungary 2013}) 11... Rc8 {[%emt 0:00:08]} (11... Bb4 $17) 12. Rc1 {[%emt 0:02:21]} Bb4 {[%emt 0:00:15] Black is slightly better.} 13. Qb3 {[%emt 0:00:18]} Ba5 {[%emt 0:00:09] Black is more active.} 14. Qa3 {[%emt 0:01:43]} Ne7 {[%emt 0:00:40][%cal Bg8e7,Be7c6,Bc6d4][%mdl 32] Strongly threatening ...Nc6.} 15. Bg5 {[%emt 0:01:19] [#]} (15. Bd2 $17 {was called for.}) 15... Nc6 $1 $19 {[%emt 0:03:58] Threatens to win with ...h6.} 16. Nd2 {[%emt 0:04:47]} (16. Kd1 {was necessary.} Nb4 17. Ne1) 16... h6 {[%emt 0:00:10]} 17. Bh4 {[%emt 0:01:18]} (17. Be3 Nb4 18. Nb3 Rxc3 19. bxc3 Nc2+ 20. Rxc2 Bxc3+ 21. Rxc3 Qxa3 22. O-O) 17... g5 {[%emt 0:00:07]} 18. Bg3 {[%emt 0:00:22]} Nxd4 {[%emt 0:00:09][%cal Oc8c3] ( -> ...Rxc3!)} 19. h4 {[#]} Rxc3 $1 {[%mdl 512]} 20. bxc3 {[%emt 0:02:51]} (20. Qe7+ Kxe7) 20... Qe2# {Black took control after the opening.  Weighted Error Value: White=1.06/Black=0.11 (very precise)} 0-1

[Event "Nakhchivan Open 2022"]
[Site "Nakhchivan"]
[Date "2022.05.08"]
[Round "1.3"]
[White "Haznedaroglu, Kivanc"]
[Black "Ibrahimbayli, Almara"]
[Result "1-0"]
[ECO "A25"]
[WhiteElo "2425"]
[BlackElo "1280"]
[Annotator "TA"]
[PlyCount "53"]
[EventDate "2022.05.08"]
[EventType "swiss"]
[EventCountry "AZE"]
[SourceTitle "playchess.com"]
[Source "ChessBase"]
[SourceQuality "1"]
[TimeControl "5400+30"]

{[%evp 9,53,18,96,77,80,76,81,76,89,102,97,103,104,83,79,85,97,95,87,78,86,80,86,77,114,83,95,81,76,59,82,89,95,63,85,56,108,106,171,157,270,246,314,260,241,246]} 1. c4 {[%emt 0:00:03]} e5 {[%emt 0:00:17]} 2. Nc3 {[%emt 0:00:10]} Nc6 {[%emt 0:00:50]} 3. g3 {[%emt 0:00:09]} Nf6 {[%emt 0:02:10]} 4. Bg2 {[%emt 0:00:11]} Bc5 {[%emt 0:03:44]} 5. e3 {[%emt 0:00:16][%cal Be2e3,Be3d4][%mdl 32]} Ne7 {[%emt 0:04:28]} (5... d5 $11 {remains equal.}) 6. d4 {[%emt 0:02:00] A25: English Opening vs King's Indian with ...Nc6 but without early d3.} exd4 {[%emt 0:00:57]} 7. exd4 {[%emt 0:00:02]} Bb4 {[%emt 0:00:59]} 8. Bg5 {[%emt 0:00:19] [#] White is better.} Bxc3+ $146 {[%emt 0:08:08]} ({Predecessor:} 8... Ng6 9. Nge2 h6 10. Bxf6 Qxf6 11. O-O c6 12. Ne4 Qe7 13. c5 O-O 14. Nd6 Ba5 {1-0 (46) Mort,A (1922)-Busznyak,A (1622) England 2020}) 9. bxc3 {[%emt 0:00:02]} Ng6 {[%emt 0:02:45]} 10. Qe2+ {[%emt 0:01:00]} Qe7 {[%emt 0:03:18]} 11. Bxf6 {[%emt 0:00:11]} (11. Kd2 {looks sharper.} d6 12. h4 h5 13. Re1) 11... gxf6 {[%emt 0:02:29]} 12. h4 {[%emt 0:00:19][%cal Bh2h4,Bh4h5][%mdl 32]} Qxe2+ {[%emt 0:00:51]} 13. Nxe2 {[%emt 0:00:02][%cal Bg1e2,Be2f4,Bf4d3,Bd3f4][%mdl 32]} d6 {[%emt 0:05:41]} 14. h5 {[%emt 0:00:56]} Ne7 {[%emt 0:00:51]} 15. Kd2 {[%emt 0:00:23]} c6 {[%emt 0:05:31]} 16. Nf4 {[%emt 0:00:11]} Bd7 {[%emt 0:01:38]} 17. Rhe1 {[%emt 0:00:15]} Kd8 {[%emt 0:03:54]} 18. Rab1 {[%emt 0:00:29]} Rb8 {[%emt 0:01:55]} 19. Nd3 {[%emt 0:01:31] White is much more active. The black rooks are badly placed.} Re8 {[%emt 0:02:52]} 20. c5 {[%emt 0:01:03]} d5 {[%emt 0:02:38]} 21. Nf4 {[%emt 0:01:13]} Kc7 {[%emt 0:01:12]} 22. Bf1 {[%emt 0:00:31][%cal Bg2f1,Bf1d3,Bd3f5][%mdl 32]} Ng8 {[%emt 0:05:01]} (22... Nf5 $14) 23. c4 $36 {[%emt 0:00:25][%mdl 2048] White is in control.} Be6 {[%emt 0:02:57]} (23... Rxe1 $16 24. Rxe1 dxc4) 24. cxd5 $18 {[%emt 0:01:38]} cxd5 {[%emt 0:02:08]} (24... Bxd5 $16 25. Nxd5+ cxd5) 25. Re3 {[%emt 0:00:14]} Nh6 {[%emt 0:04:56]} 26. Bd3 {[%emt 0:00:28] Hoping for Rbe1.} Nf5 {[%emt 0:03:27]} 27. Bxf5 {[%emt 0:02:17] Weighted Error Value: White=0.13 (very precise) /Black=0.28 (precise)} 1-0

[Event "Nakhchivan Open 2022"]
[Site "Nakhchivan"]
[Date "2022.05.08"]
[Round "1.4"]
[White "Mammadov, Bilal"]
[Black "Mammadov, Zaur"]
[Result "0-1"]
[ECO "D20"]
[WhiteElo "1280"]
[BlackElo "2410"]
[Annotator "TA"]
[PlyCount "44"]
[EventDate "2022.05.08"]
[EventType "swiss"]
[EventCountry "AZE"]
[SourceTitle "playchess.com"]
[Source "ChessBase"]
[SourceQuality "1"]
[TimeControl "5400+30"]

{[%evp 9,44,29,44,0,0,-19,-7,-13,0,0,5,-37,0,0,20,-59,-25,-192,-199,-264,-254,-252,-251,-256,-261,-249,-233,-309,-316,-317,-282,-317,-320,-603,-604,-582,-569]} 1. d4 {[%emt 0:00:06]} d5 {[%emt 0:00:03]} 2. c4 {[%emt 0:00:17]} dxc4 {[%emt 0:00:07]} 3. Nc3 {[%emt 0:00:26]} e6 {[%emt 0:00:33]} 4. e4 {[%emt 0:00:44]} c5 {[%emt 0:00:05]} 5. Nf3 {[%emt 0:01:47]} a6 {[%emt 0:01:23]} 6. a4 {[%emt 0:00:37] Against b5. D20: Queen's Gambit Accepted: 3 e3 and 3 e4.} (6. Bg5 {with more complications.} Qc7 7. Bxc4 cxd4 8. Qxd4 h6 9. Bh4) 6... cxd4 {[%emt 0:00:11]} 7. Nxd4 {[%emt 0:00:34] [#]} Bd6 $146 {[%emt 0:01:51]} ({Predecessor:} 7... e5 8. Nf3 Qxd1+ 9. Nxd1 Nf6 10. Nxe5 Nxe4 11. Bxc4 Bb4+ 12. Kf1 O-O 13. f3 Nd6 {0-1 (60) Tokarz,K (1637)-Marczak,S (1709) Iwonicz 2016}) 8. Bxc4 {[%emt 0:01:30] The position is equal.} Nf6 {[%emt 0:00:14]} 9. h3 {[%emt 0:01:51]} O-O {[%emt 0:03:19]} 10. a5 {[%emt 0:02:06]} Bb4 {[%emt 0:00:47]} 11. O-O {[%emt 0:01:32]} Bxa5 {[%emt 0:04:49]} 12. Re1 {[%emt 0:02:36]} (12. e5 $1 $11 Bb6 13. Nf3 (13. exf6 Qxd4 14. fxg7 Qxg7 $11)) 12... e5 {[%emt 0:04:03]} (12... b5 $5 {[%cal Rb5c4]} 13. Bb3 e5 $15) 13. Rxa5 $2 {[%emt 0:01:51] [#] This costs White the game.} Qxa5 $19 {[%emt 0:00:38]} (13... exd4 14. e5 Nc6 15. exf6 Qxa5 16. Nd5 $11) 14. Nb3 {[%emt 0:02:03]} (14. Nf3 $142) 14... Qb4 {[%emt 0:00:07]} 15. Bd5 {[%emt 0:01:41]} Be6 {[%emt 0:02:01]} 16. Bxe6 {[%emt 0:04:45]} fxe6 {[%emt 0:04:46]} 17. Be3 {[%emt 0:00:02]} Nbd7 {[%emt 0:00:36][%cal Bb8d7,Bd7b6,Bb6c4,Bc4b2][%mdl 32] Inhibits Bc5.} ({And not} 17... Nxe4 18. Nxe4 Qxe4 19. Bc5 $11) 18. Qc2 {[%emt 0:07:26]} Rac8 {[%emt 0:02:07][%cal Of6e4]} 19. Nd2 {[%emt 0:01:52]} Nb6 {[%emt 0:00:09]} 20. Rd1 {[%emt 0:02:36]} Nc4 {[%emt 0:00:25]} 21. Qb3 {[%emt 0:04:56] [#]} (21. Nxc4 Qxc4 22. Rd6) 21... Qxb3 {[%emt 0:00:18]} 22. Nxb3 {[%emt 0:00:02]} Nxb2 {[%emt 0:00:09] Weighted Error Value: White=0.65/Black=0.12 (very precise)} 0-1

[Event "Nakhchivan Open 2022"]
[Site "Nakhchivan"]
[Date "2022.05.08"]
[Round "1.5"]
[White "Shahaliyev, Ismayil"]
[Black "Salifli, Mirmehdi"]
[Result "1-0"]
[ECO "E40"]
[WhiteElo "2386"]
[BlackElo "1271"]
[Annotator "TA"]
[PlyCount "65"]
[EventDate "2022.05.08"]
[EventType "swiss"]
[EventCountry "AZE"]
[SourceTitle "playchess.com"]
[Source "ChessBase"]
[SourceQuality "1"]
[TimeControl "5400+30"]

{[%evp 12,65,15,12,16,22,14,14,30,13,29,24,49,49,58,0,-9,-8,0,0,40,37,53,57,54,63,62,43,875,864,862,850,890,893,1097,1078,1126,1120,1164,1154,1232,1202,1258,1153,2126,2122,2099,1552,1995,2078,2010,1759,29967,29967,29959,5573]} 1. d4 {[%emt 0:00:06]} Nf6 {[%emt 0:00:07]} 2. c4 {[%emt 0:00:05]} e6 {[%emt 0:00:04]} 3. Nc3 {[%emt 0:00:16]} Bb4 {[%emt 0:00:25]} 4. e3 {[%emt 0:00:11]} d5 {[%emt 0:00:46]} 5. a3 {[%emt 0:01:21]} Be7 {[%emt 0:02:44]} 6. Nf3 {[%emt 0:01:19]} O-O {[%emt 0:00:12]} 7. Bd3 {[%emt 0:01:32] is the legacy move (7.b4).} b6 {[%emt 0:00:45] E51: Nimzo-Indian: Rubinstein: 4...0-0 5 Nf3 d5.} 8. cxd5 $1 {[%emt 0:04:05][%mdl 4] is recently more successful than 8.0-0.} exd5 {[%emt 0:00:15]} 9. b4 {[%emt 0:00:14]} Bb7 {[%emt 0:02:45] The position is equal.} 10. Qc2 {[%emt 0:02:45]} Nbd7 {[%emt 0:03:10]} 11. Rb1 {[%emt 0:02:08] [#]} h6 $146 {[%emt 0:02:28]} ({Predecessor:} 11... a6 12. a4 Bd6 13. O-O Qe7 14. b5 a5 15. Qa2 Rad8 16. Bb2 Rfe8 17. Bc2 Nf8 {1-0 (42) Zaiatz,E (2350)-Nieminen,K (2230) Helsinki 1992}) 12. O-O {[%emt 0:00:09]} Re8 {[%emt 0:00:33]} 13. Nb5 {[%emt 0:07:57]} ({Better is} 13. Ne5 $1 $14) 13... c6 $11 {[%emt 0:04:48]} 14. Nc3 {[%emt 0:00:05]} a6 {[%emt 0:03:59]} 15. Nh4 {[%emt 0:07:07]} Ne4 {[%emt 0:04:05] [#] And now ...Nxc3 would win.} 16. Nf5 {[%emt 0:00:26]} Ndf6 {[%emt 0:00:34]} 17. Nxe4 {[%emt 0:01:38]} dxe4 {[%emt 0:02:05]} 18. Bxe4 {[%emt 0:00:11]} Nxe4 {[%emt 0:02:47]} 19. Qxe4 {[%emt 0:00:06]} Qd7 $2 {[%emt 0:00:22][%mdl 8192] A mistake that costs the game.} (19... Bf8 $14 20. Qf3 Qd5) 20. Qg4 $1 $18 {[%emt 0:00:19][%csl Gf5,LRg7,LRh6][%cal Rg4g7] [#]} Qxf5 {[%emt 0:02:33]} 21. Qxf5 {[%emt 0:00:03]} Bf6 {[%emt 0:00:21]} 22. Bb2 {[%emt 0:00:56]} c5 {[%emt 0:00:07]} 23. d5 {[%emt 0:00:39]} Bc8 {[%emt 0:00:29]} 24. Qd3 {[%emt 0:00:11]} Bxb2 {[%emt 0:00:10]} 25. Rxb2 {[%emt 0:00:01]} a5 {[%emt 0:00:07]} 26. bxc5 {[%emt 0:00:40]} Ba6 {[%emt 0:00:07]} 27. Qc3 {[%emt 0:00:07]} Bxf1 {[%emt 0:00:11]} 28. Kxf1 {[%emt 0:00:03]} bxc5 {[%emt 0:00:12]} 29. Qxc5 {[%emt 0:00:04]} Rec8 {[%emt 0:00:06]} 30. Qd4 {[%emt 0:00:05]} a4 {[%emt 0:00:14]} 31. Rb7 {[%emt 0:00:20]} Rc2 {[%emt 0:00:37]} 32. d6 {[%emt 0:00:16][%cal Bd5d6,Bd6d7][%mdl 32]} Rac8 {[%emt 0:00:16]} 33. d7 {[%emt 0:00:09] Weighted Error Value: White=0.12 (very precise) /Black=0.26 (precise)} 1-0

[Event "Nakhchivan Open 2022"]
[Site "Nakhchivan"]
[Date "2022.05.08"]
[Round "1.6"]
[White "Abdullayev, Novruzali"]
[Black "Gasimov, Parviz"]
[Result "0-1"]
[ECO "B34"]
[WhiteElo "1268"]
[BlackElo "2331"]
[Annotator "TA"]
[PlyCount "58"]
[EventDate "2022.05.08"]
[EventType "swiss"]
[EventCountry "AZE"]
[SourceTitle "playchess.com"]
[Source "ChessBase"]
[SourceQuality "1"]
[TimeControl "5400+30"]

{[%evp 9,58,5,8,-26,-22,-42,-41,-37,-32,-40,-33,-147,-136,-173,-176,-178,-156,-143,-127,-120,-121,-133,-120,-134,-134,-295,-302,-373,-373,-460,-423,-955,-954,-1720,-1700,-1609,-1191,-1414,-1371,-2316,-2277,-2342,-1703,-1933,-1889,-2145,-1592,-29997,-29990,-29990,-29991]} 1. e4 {[%emt 0:00:02]} c5 {[%emt 0:00:16]} 2. Nf3 {[%emt 0:00:20]} Nc6 {[%emt 0:00:09]} 3. d4 {[%emt 0:00:18]} cxd4 {[%emt 0:00:06]} 4. Nxd4 {[%emt 0:00:09]} g6 {[%emt 0:00:05]} 5. Nxc6 {[%emt 0:00:35]} bxc6 {[%emt 0:00:06]} 6. c3 {[%emt 0:00:47] B34: Sicilian: Accelerated Dragon with 5 Nc3: sidelines.} Bg7 {[%emt 0:00:07]} 7. Be3 {[%emt 0:00:33]} Nf6 {[%emt 0:02:17]} 8. Nd2 {[%emt 0:01:07] Black is slightly better.} O-O {[%emt 0:01:26]} 9. Bd3 {[%emt 0:01:05]} d5 {[%emt 0:00:16]} 10. e5 {[%emt 0:00:57]} ({Better is} 10. O-O $15) 10... Ng4 $17 {[%emt 0:00:19]} 11. Nf3 {[%emt 0:02:08] [#]} Nxe3 $146 {[%emt 0:01:53]} ({Inferior is} 11... Nxe5 12. Nxe5 Bxe5 13. O-O $17) ({Predecessor:} 11... Nxe5 12. Nxe5 Bxe5 13. f4 Bg7 14. Bc5 Re8 15. O-O e5 16. fxe5 Bxe5 17. Re1 Qg5 18. Be3 Bxh2+ 19. Kxh2 Rxe3 20. Qa4 Qg3+ 21. Kg1 Rxe1+ 22. Rxe1 Qxe1+ {0-1 (22) Palma Moscoso,A (2007)-Guerra,J Cuenca 2006}) 12. fxe3 {[%emt 0:00:24]} Qc7 {[%emt 0:00:02]} 13. O-O {[%emt 0:02:02]} Bxe5 {[%emt 0:00:05]} 14. Nxe5 {[%emt 0:00:21]} Qxe5 {[%emt 0:00:07]} 15. Qd2 {[%emt 0:00:44]} Be6 {[%emt 0:00:39]} 16. Rae1 {[%emt 0:00:36]} f5 {[%emt 0:00:15]} 17. e4 $2 {[%emt 0:02:54] [#] Now White is beyond hope.} (17. b3 $17 {was worth a try.}) 17... dxe4 $19 {[%emt 0:01:00]} ({Don't go for} 17... fxe4 $2 18. Bc2 $19) 18. Qh6 {[%emt 0:03:21]} Qc5+ {[%emt 0:02:34]} 19. Kh1 {[%emt 0:01:00]} Bxa2 {[%emt 0:01:03]} 20. Rf4 {[%emt 0:04:55]} (20. Bc2 $142) 20... exd3 {[%emt 0:01:09]} 21. b4 {[%emt 0:01:56]} Qxc3 {[%emt 0:01:29]} 22. Ref1 {[%emt 0:05:26]} Qg7 {[%emt 0:01:51]} 23. Qh3 e5 {[%cal Be7e5,Be5e4,Be4e3][%mdl 32]} 24. Rh4 {[%emt 0:05:21]} Rad8 {[%emt 0:00:35]} 25. Qe3 {[%emt 0:01:57]} e4 {[%emt 0:00:02] [#] ...d2 is the strong threat.} 26. Qd2 {[%emt 0:01:20]} Bf7 {[%emt 0:00:35]} 27. Rh3 {[%emt 0:02:23]} Rfe8 {[%emt 0:00:05]} 28. Rf4 {[%emt 0:00:56]} e3 {[%emt 0:00:11]} 29. Qe1 {[%emt 0:06:03]} d2 {[%emt 0:00:02] Weighted Error Value: White=1.21/Black=0.41} 0-1

[Event "Nakhchivan Open 2022"]
[Site "Nakhchivan"]
[Date "2022.05.09"]
[Round "2.2"]
[White "Rasulov, Vugar"]
[Black "Rustamov, Rustam"]
[Result "1-0"]
[ECO "E20"]
[WhiteElo "2445"]
[BlackElo "1585"]
[Annotator "TA"]
[PlyCount "109"]
[EventDate "2022.05.08"]
[EventType "swiss"]
[EventCountry "AZE"]
[SourceTitle "playchess.com"]
[Source "ChessBase"]
[SourceQuality "1"]
[TimeControl "5400+30"]

{[%evp 19,109,28,28,22,18,24,28,28,28,27,22,13,27,22,63,47,44,51,60,51,50,42,36,0,112,2,42,42,54,62,61,60,65,33,58,43,48,45,54,27,45,0,30,32,51,19,58,24,25,39,43,42,49,45,44,58,24,0,4,4,60,63,49,38,319,319,319,282,282,69,69,69,614,606,579,534,506,473,6436,6191,5539,5073,2595,1777,2722,1385,2535,2237,29979,29980,29978,6740]} 1. d4 {[%emt 0:01:15]} Nf6 {[%emt 0:00:08]} 2. c4 {[%emt 0:00:17]} e6 {[%emt 0:00:04]} 3. Nc3 {[%emt 0:00:27]} Bb4 {[%emt 0:00:14]} 4. Bd2 {[%emt 0:00:13]} O-O {[%emt 0:00:00]} 5. Nf3 {[%emt 0:00:06]} b6 {[%emt 0:00:30]} 6. e3 {[%emt 0:00:06]} Bb7 {[%emt 0:00:05]} 7. Be2 {[%emt 0:00:04]} d6 {[%emt 0:00:26]} 8. O-O {[%emt 0:00:06]} Nbd7 {[%emt 0:00:15]} 9. Rc1 Bxc3 10. Bxc3 {[%emt 0:01:31]} Ne4 {[%emt 0:01:27]} 11. Be1 {[%emt 0:01:33] [#] E21: Nimzo-Indian: 4 Nf3.} a5 $146 {[%emt 0:00:58]} ({Predecessor:} 11... f5 12. Nd2 Nxd2 13. Bxd2 a5 14. Bf3 Bxf3 15. Qxf3 Nf6 16. Qe2 Qe7 17. Rfd1 e5 18. dxe5 Qxe5 19. Bc3 Qe6 20. Bxf6 Rxf6 {½-½ (58) Durak,C (2244)-Istratescu,A (2553) Tornelo INT 2021}) 12. Nd2 {[%emt 0:02:09]} Nxd2 13. Qxd2 {White has an edge.} Qe7 {[%emt 0:10:37]} 14. f3 {[%emt 0:00:24]} f5 {[%emt 0:01:12]} 15. Bf2 e5 {[%emt 0:06:34]} 16. a3 {[%emt 0:01:10]} c5 {[%emt 0:01:16]} 17. b4 axb4 {[%emt 0:18:30]} 18. axb4 {[%emt 0:01:07]} cxb4 19. Rb1 {[%emt 0:00:28]} e4 {[%emt 0:16:48]} 20. f4 d5 {[%emt 0:02:13]} 21. Rfc1 {[%emt 0:01:40]} dxc4 ({Don't do} 21... Ra4 22. Bd1 Raa8 23. Rxb4 $14) (21... Rfc8 $11) 22. Rxc4 {[%emt 0:01:06]} (22. Bxc4+ $16 Kh8 23. Qxb4 Qxb4 24. Rxb4) 22... Bd5 {[%emt 0:01:59]} (22... Ba6 $5 {[%cal Ra6c4]}) 23. Rcxb4 {[%emt 0:00:06]} Ra2 {[%emt 0:01:25]} 24. R4b2 {[%emt 0:00:02]} Rxb2 {[%emt 0:00:24]} 25. Qxb2 {[%emt 0:00:16]} Ra8 {[%emt 0:03:22]} 26. Bf1 {[%emt 0:02:19]} Rc8 {[%emt 0:06:59][%cal Ba8c8,Bc8c7,Bc7a7,Ba7a2][%mdl 32]} 27. h3 {[%emt 0:01:17]} h6 {[%emt 0:00:38]} 28. Bb5 {[%emt 0:00:42][%cal Of2h4]} Kh7 {[%emt 0:00:55]} 29. Qd2 {[%emt 0:02:39]} Rc7 {[%emt 0:01:26]} 30. Be2 {[%emt 0:01:16]} (30. Bxd7 $5 Rxd7 31. Rxb6 $16) 30... Ra7 {[%emt 0:01:16]} 31. Qc3 {[%emt 0:00:59]} Ra2 {[%emt 0:02:23]} 32. Bb5 {[%emt 0:02:37] [#] And now Qc7 would win.} Nf8 {[%emt 0:04:08]} 33. Bf1 {[%emt 0:01:57]} Qd6 {[%emt 0:01:11]} 34. Be1 {[%emt 0:03:12]} Nd7 {[%emt 0:01:15]} 35. Rb5 {[%emt 0:03:25]} Qc6 {[%emt 0:05:17]} 36. Qxc6 {[%emt 0:09:33]} Bxc6 {[%emt 0:00:04]} 37. Rb1 {[%emt 0:00:29]} Bd5 {[%emt 0:00:35] Against Bc4} 38. Bb5 {[%emt 0:04:37]} Nf6 {[%emt 0:00:27]} 39. Bh4 {[%emt 0:00:02]} Ra7 {[%emt 0:04:39]} (39... Kg6 $11) 40. Bxf6 $14 {[%emt 0:01:02]} gxf6 {[%emt 0:00:04][%mdl 4096] Endgame KRB-KRB} 41. Rb2 {[%emt 0:00:36]} Ra2 $2 {[%emt 0:01:58][%mdl 8192]} (41... Kg6 $14) 42. Rxa2 $18 {[%emt 0:00:20]} Bxa2 {[%emt 0:00:05] KB-KB} 43. Kf2 {[%emt 0:00:09]} Kg7 {[%emt 0:00:25] [#]} 44. Ke1 $2 {[%emt 0:00:07]} (44. Bd7 $1 $18) 44... Kf7 $14 {[%emt 0:00:31]} 45. Bd7 {[%emt 0:00:38]} Kg6 {[%emt 0:00:45][%mdl 8192]} (45... Be6 $14 46. Bb5 Ke7) 46. Kd2 $18 {[%emt 0:00:05]} Bc4 {[%emt 0:00:33]} 47. g3 {[%emt 0:00:06]} Bf1 {[%emt 0:00:45]} 48. h4 {[%emt 0:00:03] Black must now prevent d5.} Bh3 {[%emt 0:00:07]} (48... Kf7 $142 49. Bxf5 Bg2) 49. d5 {[%emt 0:00:14]} Kf7 {[%emt 0:00:21]} 50. d6 {[%emt 0:00:05]} Bf1 {[%emt 0:01:18]} 51. Bxf5 {[%emt 0:00:15]} Bd3 {[%emt 0:00:06]} 52. Kc3 {[%emt 0:00:09] Threatens to win with g4.} b5 {[%emt 0:00:28]} 53. Kb4 {[%emt 0:00:07] Hoping for g4.} h5 {[%emt 0:00:30]} 54. Kc5 {[%emt 0:00:06]} Ke8 {[%emt 0:00:07]} 55. Bg6+ {[%emt 0:00:14] Weighted Error Value: White=0.22 (precise) /Black=0.59} 1-0